bitfinex-derivatives/quotes_SOLF0:USTF0_20251126
["timestamp","ask_amount","ask_price","bid_price","bid_amount"]
[1764123235726,3.19020008,139.92,139.9,6.48641058]
[1764123242432,0.05020008,139.92,139.9,6.48641058]
[1764123242631,3.13020008,139.92,139.9,6.48641058]
[1764123247439,3.13020008,139.92,139.9,0.05041058]
[1764123248440,3.08,139.91,139.9,0.05041058]
[1764123253045,3.08,139.91,139.86,6.4377]
[1764123253237,3.08,139.91,139.84,100.1564]
[1764123253430,3.08,139.91,139.85,6.4381]
[1764123253635,3.08,139.9,139.83,3.54028994]
[1764123253837,3.08,139.89,139.83,3.54028994]
[1764123254140,3.08,139.86,139.83,3.54028994]
[1764123255444,3.08,139.86,139.83,9.97938994]
[1764123256547,3.13008941,139.87,139.83,9.97938994]
[1764123259142,3.13008941,139.87,139.84,6.4388]
[1764123262357,0.05008941,139.87,139.85,6.4383]
[1764123263155,3.03,139.9,139.87,6.4371]
[1764123263457,3.03,139.9,139.85,0.04891494]
[1764123263957,3.03,139.89,139.85,0.04891494]
[1764123264153,3.03,139.87,139.85,0.04891494]
[1764123265858,0.04576779,139.88,139.85,6.48721494]
[1764123266064,0.04576779,139.88,139.85,0.04891494]
[1764123266464,0.04576779,139.88,139.86,6.4378]
[1764123278276,10.42492383,139.91,139.89,6.4365]
[1764123278474,3.03,139.94,139.89,6.4365]
[1764123278775,13.45446995,139.93,139.89,6.4365]
[1764123278967,10.42446995,139.92,139.89,6.4365]
[1764123279168,0.04956675,139.92,139.89,6.49043842]
[1764123279369,0.04956675,139.92,139.9,6.4359]
[1764123290880,3.04956675,139.92,139.9,6.4359]
[1764123291486,0.04956675,139.92,139.9,6.4359]
[1764123291689,3.04956675,139.92,139.89,0.05393842]
[1764123293792,3.04956675,139.92,139.89,6.49043842]
[1764123295795,3.04956675,139.92,139.89,0.05393842]
[1764123300993,3.0,139.9,139.89,0.05393842]
[1764123301197,13.40557628,139.9,139.89,0.05393842]
[1764123305596,3.05,139.89,139.84,6.4386]
[1764123305904,3.05,139.87,139.84,6.4386]
[1764123306595,3.10374573,139.87,139.84,6.48051878]
[1764123311204,0.05374573,139.87,139.85,8.70610534]
[1764123311906,3.05,139.91,139.87,6.4372]
[1764123312204,5.03398021,139.9,139.87,2.26770534]
[1764123312406,3.05,139.91,139.87,2.26770534]
[1764123312700,5.03379241,139.9,139.87,2.26770534]
[1764123312905,3.05,139.91,139.87,2.26770534]
[1764123313107,5.08298341,139.9,139.87,2.31423431]
[1764123313301,3.09919229,139.9,139.88,6.437]
[1764123313502,0.04919229,139.9,139.88,6.437]
[1764123313701,3.09919229,139.9,139.87,2.31423431]
[1764123313901,3.09919229,139.9,139.87,8.75163431]
[1764123314700,3.09919229,139.9,139.88,6.4369]
[1764123316006,0.04919229,139.9,139.88,6.4369]
[1764123316204,3.09919229,139.9,139.88,6.4369]
[1764123320006,0.04919229,139.9,139.89,2.26770534]
[1764123320405,2.91919229,139.9,139.89,2.26770534]
[1764123322617,0.04919229,139.9,139.89,2.26770534]
[1764123327119,2.91919229,139.9,139.88,6.4369]
[1764123327512,2.91919229,139.9,139.87,0.04652897]
[1764123327914,2.87,139.88,139.87,0.04652897]
[1764123328214,13.3154798,139.88,139.87,0.04652897]
[1764123328814,7.90722061,139.88,139.87,0.04652897]
[1764123329220,13.31500331,139.88,139.87,0.04652897]
[1764123329526,5.03722061,139.88,139.87,0.04652897]
[1764123329723,7.90722061,139.88,139.87,0.04652897]
[1764123330618,7.90722061,139.88,139.81,2.26770534]
[1764123330619,2.87,139.87,139.81,2.26770534]
[1764123330820,2.87,139.85,139.81,2.26770534]
[1764123331416,5.03930767,139.84,139.82,6.4397]
[1764123331621,0.05332849,139.84,139.82,6.48883554]
[1764123355249,0.05332849,139.84,139.83,2.26770534]
[1764123362563,3.0,139.9,139.86,6.4378]
[1764123362865,13.39689796,139.89,139.86,8.70550534]
[1764123363057,3.0,139.89,139.86,8.70550534]
[1764123363252,4.99343768,139.88,139.86,8.70550534]
[1764123363455,3.0,139.89,139.86,8.70550534]
[1764123363656,4.99343806,139.88,139.86,8.75190445]
[1764123363857,3.0,139.88,139.86,8.75190445]
[1764123365358,3.0,139.88,139.86,6.48419911]
[1764123365554,0.05412622,139.89,139.87,6.4374]
[1764123365761,0.05412622,139.89,139.88,2.26770534]
[1764123366563,0.05412622,139.89,139.87,9.97773026]
[1764123384180,3.0,139.97,139.94,100.0895]
[1764123384387,5.0716998,139.96,139.94,100.0895]
[1764123384579,5.41517457,139.98,139.96,100.0722]
[1764123384780,3.0,140.0,139.96,103.61253026]
[1764123384985,6.67191373,140.04,140.01,100.0384]
[1764123385188,3.0,140.05,140.01,100.0384]
[1764123385384,3.04733108,140.04,140.01,100.08519558]
[1764123385583,0.04733108,140.04,140.01,100.08519558]
[1764123385786,0.04733108,140.04,140.03,6.4302]
[1764123389290,0.04733108,140.04,140.01,6.47769558]
[1764123389682,3.04733108,140.04,140.01,6.47769558]
[1764123390192,0.04733108,140.04,140.01,6.47769558]
[1764123390885,3.04733108,140.04,140.01,0.04679558]
[1764123391191,3.04733108,140.04,139.93,27.98033026]
[1764123391192,3.0,140.03,139.93,27.98033026]
[1764123392095,3.0540156,139.99,139.97,0.05308413]
[1764123392296,3.05220912,139.99,139.97,0.05308413]
[1764123393498,0.05220912,139.99,139.97,0.05308413]
[1764123394900,0.05220912,139.99,139.97,6.48568413]
[1764123406100,3.0,140.04,139.99,100.0505]
[1764123406305,3.0,140.06,140.0,3.54033026]
[1764123406998,0.05137165,140.04,140.02,0.05423522]
[1764123407303,0.05137165,140.04,140.02,6.48473522]
[1764123408407,3.16137165,140.04,140.02,6.48473522]
[1764123410511,3.16137165,140.04,140.02,0.05423522]
[1764123412506,0.05137165,140.04,140.02,6.48473522]
[1764123415111,3.11,140.1,140.05,6.4292]
[1764123416115,0.04750284,140.09,140.06,0.05226077]
[1764123416306,3.11,140.08,140.06,0.05226077]
[1764123416512,3.11,140.08,140.06,6.48076077]
[1764123416811,3.11,140.08,140.06,0.05226077]
[1764123420209,3.11,140.08,140.06,6.48086077]
[1764123422312,0.04750284,140.09,140.06,0.05226077]
[1764123423013,2.98750284,140.09,140.06,0.05226077]
[1764123423813,2.94,140.08,140.06,0.05226077]
[1764123425311,2.94,140.07,140.06,0.05226077]
[1764123427406,8.24534803,140.07,140.06,0.05226077]
[1764123428315,13.191958,140.07,140.06,0.05226077]
[1764123431606,4.94660997,140.07,140.06,0.05226077]
[1764123431808,2.98750284,140.09,140.06,6.48066077]
[1764123432019,10.2666578,140.08,140.06,6.48066077]
[1764123432311,2.98750284,140.09,140.06,0.05226077]
[1764123432512,10.26526691,140.08,140.06,0.05226077]
[1764123432818,13.20538122,140.07,140.06,0.05226077]
[1764123433304,10.26538122,140.07,140.06,0.05226077]
[1764123433503,0.04750284,140.09,140.06,0.05226077]
[1764123433504,0.04750284,140.09,140.06,102.31696573]
[1764123433814,2.98750284,140.09,140.06,0.05226077]
[1764123434318,0.04750284,140.09,140.07,2.26120496]
[1764123434816,2.98750284,140.09,140.07,6.4281]
[1764123435118,0.04750284,140.09,140.08,2.26120496]
[1764123440615,9.56191373,140.15,140.1,99.9746]
[1764123440918,9.56191373,140.15,140.11,2.26120496]
[1764123440919,2.89,140.15,140.11,2.26120496]
[1764123441118,2.89,140.15,140.13,6.4253]
[1764123441521,2.94486674,140.15,140.13,6.47882923]
[1764123444420,0.05486674,140.15,140.13,6.47882923]
[1764123444612,0.05486674,140.15,140.13,8.74003419]
[1764123444817,2.94486674,140.15,140.13,8.74003419]
[1764123445821,2.94486674,140.15,140.13,0.05352923]
[1764123446823,8.25418383,140.15,140.13,0.05352923]
[1764123447127,2.94486674,140.15,140.13,0.05352923]
[1764123447622,8.25418383,140.15,140.13,0.05352923]
[1764123447824,2.94486674,140.15,140.13,0.05352923]
[1764123448219,2.89,140.14,140.13,0.05352923]
[1764123449624,8.19931709,140.14,140.13,0.05352923]
[1764123450718,2.89,140.13,140.08,6.4278]
[1764123450924,2.89,140.11,140.05,2.26120496]
[1764123451126,2.89,140.09,140.04,1.79]
[1764123451320,2.89,140.07,140.04,1.79]
[1764123451522,2.89,140.06,140.04,1.79]
[1764123451724,2.93641871,140.06,140.04,1.83649139]
[1764123453526,8.20699092,140.05,140.04,1.83649139]
[1764123456121,2.89,140.05,140.04,1.83649139]
[1764123456830,2.89,140.05,140.04,0.04649139]
[1764123461627,8.20719628,140.05,140.04,0.04649139]
[1764123462436,8.20677851,140.05,140.04,0.04649139]
[1764123464730,2.89,140.05,140.04,0.04649139]
[1764123469939,8.20468878,140.05,140.04,0.04649139]
[1764123470939,2.98,140.04,140.01,1.79]
[1764123471140,2.98,140.03,140.01,1.79]
[1764123472042,2.98,140.03,140.01,1.84430685]
[1764123474342,2.98,140.03,140.01,8.27510685]
[1764123474540,2.98,140.03,140.01,10.53631181]
[1764123474937,2.98,140.04,140.01,10.53631181]
[1764123477847,2.98,140.04,140.01,1.84430685]
[1764123482046,3.08,140.03,139.95,0.78]
[1764123482347,3.08,140.03,139.95,3.04120496]
[1764123482348,3.08,140.02,139.95,3.04120496]
[1764123482742,3.08,140.01,139.95,7.2137]
[1764123483050,3.08,139.98,139.97,0.05353795]
[1764123488045,3.08,139.98,139.91,2.26120496]
[1764123488347,3.08,139.95,139.88,0.88]
[1764123488547,3.08,139.95,139.88,7.3169]
[1764123489143,3.08,139.92,139.9,0.04726589]
[1764123491856,3.08,139.92,139.83,4.47066907]
[1764123492243,3.08,139.91,139.83,4.47066907]
[1764123492650,3.08,139.9,139.83,4.47066907]
[1764123492847,3.08,139.87,139.83,4.47066907]
[1764123493758,3.08,139.87,139.83,0.93]
[1764123499258,0.05474752,139.88,139.84,0.94]
[1764123500360,0.05474752,139.88,139.86,0.94]
[1764123501952,3.12,139.93,139.88,0.94]
[1764123502763,3.12,139.93,139.89,0.94]
[1764123502961,0.05144331,139.92,139.9,0.99229623]
[1764123505059,0.05144331,139.92,139.91,0.94]
[1764123506266,0.05144331,139.92,139.9,7.42819623]
[1764123506467,0.05144331,139.92,139.91,0.94]
[1764123510762,0.05144331,139.92,139.9,6.48819623]
[1764123510965,3.17144331,139.92,139.9,6.48819623]
[1764123511159,3.17144331,139.92,139.9,7.42819623]
[1764123511362,0.05144331,139.92,139.9,7.42819623]
[1764123513359,3.17144331,139.92,139.9,0.05229623]
[1764123513859,3.12,139.91,139.85,6.4382]
[1764123514061,3.12,139.91,139.84,0.94]
[1764123514461,3.12,139.91,139.83,3.54066907]
[1764123514662,0.04515666,139.88,139.83,3.54066907]
[1764123514965,3.12,139.87,139.83,10.91976907]
[1764123515567,3.12,139.87,139.84,0.94]
[1764123516770,3.12,139.87,139.83,10.91976907]
[1764123516969,3.12,139.87,139.83,7.3791]
[1764123517163,3.12,139.87,139.81,6.44]
[1764123517364,3.16699796,139.85,139.82,0.94]
[1764123517569,3.1669838,139.85,139.82,0.94]
[1764123519574,3.1669838,139.85,139.82,7.3796]
[1764123519870,3.1669838,139.85,139.83,0.94]
[1764123520374,0.0469838,139.85,139.83,0.94]
[1764123523178,3.1669838,139.85,139.82,6.4396]
[1764123523575,3.1669838,139.85,139.82,7.3796]
[1764123525278,3.1669838,139.85,139.83,0.94]
[1764123525676,3.1669838,139.85,139.78,6.4415]
[1764123525870,3.1669838,139.85,139.77,101.1486]
[1764123526178,3.1669838,139.85,139.81,0.94]
[1764123526581,3.1669838,139.85,139.8,6.4406]
[1764123526767,3.1669838,139.85,139.78,10.92206907]
[1764123526972,3.1669838,139.85,139.78,4.48066907]
[1764123527172,3.1669838,139.85,139.79,0.94]
[1764123528076,3.1669838,139.85,139.79,7.3811]
[1764123528775,3.1669838,139.85,139.8,7.3906]
[1764123530376,3.1669838,139.85,139.81,6.4399]
[1764123531973,3.12,139.84,139.81,6.4399]
[1764123532370,3.12,139.84,139.8,0.95]
[1764123534482,3.12,139.84,139.8,7.3906]
[1764123536276,3.12,139.84,139.78,7.3914]
[1764123537378,3.12,139.84,139.79,0.95]
[1764123538677,3.12,139.84,139.78,6.4414]
[1764123539089,3.12,139.83,139.78,7.3914]
[1764123539387,3.12,139.81,139.78,7.3914]
[1764123539686,0.0549077,139.82,139.79,0.95]
[1764123540080,3.1749077,139.82,139.79,0.95]
[1764123544684,3.1749077,139.82,139.78,7.3914]
[1764123544890,3.1749077,139.82,139.78,6.4414]
[1764123545086,3.1749077,139.82,139.76,0.95]
[1764123545393,2.84,139.79,139.74,0.95]
[1764123545590,2.84,139.79,139.72,0.95]
[1764123545892,2.84,139.76,139.72,0.95]
[1764123546590,2.84,139.76,139.71,0.95]
[1764123548395,2.84,139.76,139.72,0.95]
[1764123550095,2.84,139.76,139.73,0.95]
[1764123556403,8.30122965,139.75,139.73,0.95]
[1764123556601,2.84,139.75,139.73,0.95]
[1764123558809,0.05189572,139.77,139.73,0.95]
[1764123559009,8.31416341,139.76,139.73,0.95]
[1764123559305,5.46416341,139.75,139.73,0.95]
[1764123559505,2.85,139.76,139.73,0.95]
[1764123559699,5.46426754,139.75,139.73,0.95]
[1764123559895,2.85,139.76,139.73,0.95]
[1764123560099,8.31426754,139.75,139.73,0.95]
[1764123560302,2.85,139.75,139.73,0.95]
[1764123561711,2.85,139.76,139.73,0.95]
[1764123561901,0.05189572,139.77,139.74,0.94]
[1764123562102,5.46410822,139.76,139.74,0.94]
[1764123562302,0.05189572,139.77,139.74,0.94]
[1764123562507,5.46404789,139.76,139.74,0.94]
[1764123562813,2.90189572,139.77,139.74,0.94]
[1764123563014,5.46404789,139.76,139.74,0.94]
[1764123563202,2.90189572,139.77,139.74,0.94]
[1764123563402,5.464668,139.76,139.74,0.94]
[1764123563611,0.05189572,139.77,139.76,0.94]
[1764123563810,0.05189572,139.77,139.76,3.21133737]
[1764123564106,0.05189572,139.77,139.76,0.94]
[1764123567513,2.90189572,139.77,139.75,9.65423737]
[1764123567712,2.90189572,139.77,139.75,6.4429]
[1764123568314,2.90189572,139.77,139.74,0.94]
[1764123568508,8.31931715,139.76,139.74,0.94]
[1764123568709,2.85,139.76,139.74,0.94]
[1764123569916,2.90189572,139.77,139.74,0.94]
[1764123570118,5.47081015,139.76,139.74,0.94]
[1764123570319,2.90189572,139.77,139.74,0.94]
[1764123570619,5.47218489,139.76,139.74,0.94]
[1764123570808,2.90189572,139.77,139.74,0.94]
[1764123571011,5.47218489,139.76,139.74,0.94]
[1764123571326,2.90189572,139.77,139.74,0.94]
[1764123571509,5.47281833,139.76,139.74,0.94]
[1764123571709,2.90189572,139.77,139.74,0.94]
[1764123571906,5.47281833,139.76,139.74,7.3834]
[1764123572119,2.90189572,139.77,139.75,0.94]
[1764123572417,5.47304096,139.76,139.75,0.94]
[1764123576318,5.47304096,139.76,139.75,3.21133737]
[1764123576524,0.05189572,139.77,139.76,7.3826]
[1764123578018,2.90189572,139.77,139.76,6.4426]
[1764123578226,8.16877677,139.77,139.76,6.4426]
[1764123580228,5.31877677,139.77,139.76,7.3826]
[1764123580429,2.85,139.81,139.79,6.4412]
[1764123581422,2.89564482,139.81,139.79,6.49206626]
[1764123582630,2.89564482,139.81,139.79,7.43206626]
[1764123583531,3.224e-05,139.94,139.93,6.4348]
[1764123583730,30.96536287,140.06,139.93,6.4348]
[1764123583731,5.12133737,140.07,139.96,100.0747]
[1764123584029,108.0616,140.1,139.96,100.0747]
[1764123584030,2.85,140.06,140.0,2.27133737]
[1764123584230,2.85,140.06,139.96,100.0747]
[1764123584433,0.04524879,140.02,140.0,0.05244886]
[1764123584627,2.89524879,140.02,140.0,0.05244886]
[1764123586627,0.04524879,140.02,140.0,2.32378623]
[1764123587129,0.04524879,140.02,140.0,102.36968623]
[1764123587333,0.04524879,140.02,140.0,8.75508623]
[1764123587634,0.04524879,140.02,140.0,0.05244886]
[1764123587835,0.04524879,140.02,140.01,2.27133737]
[1764123588338,2.96,140.08,140.01,2.27133737]
[1764123588535,2.96,140.08,140.03,2.27133737]
[1764123588836,2.96,140.08,140.05,2.27133737]
[1764123589238,3.00646585,140.08,140.05,2.32564212]
[1764123589423,0.04646585,140.08,140.05,2.32564212]
[1764123590435,3.00646585,140.08,140.05,2.32564212]
[1764123592324,3.00646585,140.08,140.05,0.05430475]
[1764123592530,3.00646585,140.08,139.99,6.4316]
[1764123592736,2.96,140.08,140.01,2.27133737]
[1764123593537,2.96,140.05,140.03,0.04721119]
[1764123600446,3.00931471,140.06,140.03,2.31854856]
[1764123601039,3.00931471,140.06,140.03,0.04721119]
[1764123609449,2.91,140.05,139.99,2.27133737]
[1764123610451,2.91,140.05,140.01,2.31938892]
[1764123610650,2.91,140.03,140.01,0.04805155]
[1764123618449,2.91,140.03,139.96,9.96757489]
[1764123618649,2.91,140.03,139.94,3.53437489]
[1764123618848,2.94,140.01,139.9,100.112]
[1764123619045,2.94,140.01,139.92,3.53437489]
[1764123619449,2.94,139.97,139.93,6.4346]
[1764123623760,2.94,139.97,139.89,6.4364]
[1764123623960,2.94,139.93,139.89,6.4364]
[1764123627452,2.94,139.93,139.87,6.4374]
[1764123627658,2.94,139.93,139.86,3.53437489]
[1764123627859,2.94,139.9,139.85,3.53437489]
[1764123629357,2.94,139.9,139.85,9.97267489]
[1764123630271,2.94,139.9,139.86,6.4378]
[1764123631165,2.94,139.9,139.82,106.77440082]
[1764123631364,2.94,139.86,139.83,3.53437489]
[1764123631569,2.98953624,139.86,139.81,6.60230082]
[1764123631782,0.04953624,139.86,139.82,3.53437489]
[1764123632263,0.04953624,139.86,139.84,6.4387]
[1764123639774,2.94,139.91,139.86,6.4379]
[1764123640765,2.99103896,139.9,139.87,0.04801916]
[1764123648880,0.05103896,139.9,139.87,0.04801916]
[1764123649383,3.12103896,139.9,139.87,3.58239405]
[1764123649585,3.12103896,139.9,139.87,10.01979405]
[1764123653985,3.12103896,139.9,139.87,6.48541916]
[1764123654783,3.12103896,139.9,139.87,0.04801916]
[1764123669998,2.93,139.88,139.85,6.65817011]
[1764123670200,2.93,139.88,139.84,6.65817011]
[1764123670393,2.93,139.88,139.83,6.65817011]
[1764123670794,2.93,139.87,139.83,6.65817011]
[1764123670989,0.05159365,139.86,139.83,6.65817011]
[1764123671200,2.93,139.85,139.83,6.65817011]
[1764123675208,0.05159365,139.86,139.83,6.65817011]
[1764123675209,2.98159365,139.86,139.83,8.92612665]
[1764123675410,0.05159365,139.86,139.85,2.26795654]
[1764123678911,0.05159365,139.86,139.85,8.92612665]
[1764123680110,0.05159365,139.86,139.85,6.65817011]
[1764123680900,0.05159365,139.86,139.85,8.92612665]
[1764123683612,3.14159365,139.86,139.85,6.65817011]
[1764123683800,3.14159365,139.86,139.84,13.09687011]
[1764123684215,3.14159365,139.86,139.84,6.65817011]
[1764123684609,3.14159365,139.86,139.82,13.09767011]
[1764123687119,3.14159365,139.86,139.83,6.65817011]
[1764123689423,3.14159365,139.86,139.82,13.09767011]
[1764123689923,3.14159365,139.86,139.82,6.65817011]
[1764123696328,3.09,139.85,139.82,6.65817011]
[1764123696522,3.09,139.85,139.81,6.4402]
[1764123696523,3.09,139.85,139.81,6.65817011]
[1764123697126,3.09,139.85,139.81,13.09837011]
[1764123700023,3.09,139.84,139.81,6.65817011]
[1764123703628,3.09,139.83,139.79,6.65817011]
[1764123703824,3.09,139.81,139.79,6.65817011]
[1764123704518,3.09,139.81,139.78,1.77]
[1764123704519,3.09,139.81,139.78,8.2674743]
[1764123704728,3.09,139.79,139.76,8.80306776]
[1764123705024,3.09,139.77,139.73,8.80306776]
[1764123705229,3.09,139.75,139.72,8.80306776]
[1764123705430,3.09,139.75,139.71,8.80306776]
[1764123706131,3.13686,139.76,139.71,8.80306776]
[1764123706522,3.13686,139.76,139.71,15.24776776]
[1764123707326,3.13686,139.76,139.71,6.4447]
[1764123709034,3.13686,139.76,139.7,11.0710243]
[1764123709235,3.13686,139.76,139.7,2.26795654]
[1764123709930,3.12,139.75,139.7,2.26795654]
[1764123714633,3.12,139.74,139.69,8.71355654]
[1764123714830,3.12,139.72,139.69,8.71355654]
[1764123716232,0.04602811,139.73,139.7,6.4452]
[1764123716423,3.16602811,139.73,139.7,6.4452]
[1764123718336,3.16602811,139.73,139.68,6.4461]
[1764123718533,3.16602811,139.73,139.67,2.26795654]
[1764123718934,3.16602811,139.73,139.67,8.71455654]
[1764123719930,3.16602811,139.73,139.68,6.4461]
[1764123720325,3.12,139.72,139.66,2.26795654]
[1764123720530,0.04794092,139.7,139.66,2.26795654]
[1764123720731,3.03794092,139.7,139.66,2.26795654]
[1764123720927,0.04794092,139.7,139.68,6.4461]
[1764123721234,0.04794092,139.7,139.68,8.71405654]
[1764123722233,3.03794092,139.7,139.66,6.447]
[1764123722543,3.03794092,139.7,139.66,8.71495654]
[1764123722837,3.03794092,139.7,139.67,6.4466]
[1764123723035,0.04794092,139.7,139.68,2.26795654]
[1764123723438,0.04794092,139.7,139.68,8.71395654]
[1764123724738,2.99,139.79,139.7,100.2616]
[1764123724934,2.99,139.79,139.73,2.26795654]
[1764123725742,3.04358275,139.77,139.75,0.04547334]
[1764123726541,0.05358275,139.77,139.75,0.04547334]
[1764123727543,0.05358275,139.77,139.75,8.75632988]
[1764123730739,0.05358275,139.77,139.75,6.48837334]
[1764123752456,2.85,139.83,139.79,6.441]
[1764123752655,2.85,139.83,139.76,24.5]
[1764123753447,0.05111132,139.81,139.79,6.4411]
[1764123753654,2.90111132,139.81,139.79,6.4411]
[1764123753958,2.90111132,139.81,139.78,0.04519756]
[1764123754348,0.05111132,139.81,139.78,103.79358356]
[1764123755066,2.90111132,139.81,139.79,6.4411]
[1764123755258,2.90111132,139.81,139.78,0.04519756]
[1764123755765,2.85,139.8,139.78,0.04519756]
[1764123755961,2.85,139.79,139.72,3.546986]
[1764123756256,2.85,139.76,139.71,6.4448]
[1764123756848,2.85,139.76,139.72,6.4443]
[1764123757061,2.89590009,139.75,139.73,0.05066584]
[1764123757359,2.90373896,139.75,139.73,0.05066584]
[1764123759354,0.05373896,139.75,139.73,6.49446584]
[1764123760357,2.85,139.81,139.77,6.442]
[1764123760554,2.85,139.81,139.73,33.30306776]
[1764123760759,2.85,139.81,139.73,128.283986]
[1764123760958,2.85,139.81,139.73,137.08705376]
[1764123761165,2.85,139.81,139.77,6.4419]
[1764123761362,2.85,139.79,139.78,0.05109421]
[1764123761961,0.05243831,139.8,139.78,6.49259421]
[1764123762567,2.90243831,139.8,139.78,6.49259421]
[1764123763264,0.05243831,139.8,139.78,6.49259421]
[1764123764064,2.90243831,139.8,139.74,8.80306776]
[1764123764271,2.90243831,139.8,139.72,8.80306776]
[1764123764467,2.85,139.76,139.7,8.80306776]
[1764123764663,2.85,139.76,139.7,15.24826776]
[1764123764864,2.85,139.76,139.68,33.30306776]
[1764123765067,100.2074,139.78,139.66,13.27551581]
[1764123765068,2.85,139.73,139.66,8.80306776]
[1764123765264,2.89501558,139.73,139.65,137.14655376]
[1764123765572,2.89501558,139.73,139.68,0.04981801]
[1764123765872,9.33911558,139.73,139.68,0.04981801]
[1764123766169,2.89501558,139.73,139.68,0.04981801]
[1764123766558,2.85,139.71,139.68,0.04981801]
[1764123766969,9.2952,139.71,139.68,0.04981801]
[1764123767168,2.85,139.69,139.68,0.04981801]
[1764123767372,7.85454529,139.69,139.68,0.04981801]
[1764123767964,2.85,139.68,139.61,6.4494]
[1764123768169,2.85,139.68,139.61,9.996386]
[1764123768571,2.85,139.68,139.62,6.4488]
[1764123768960,0.04837743,139.66,139.62,6.4488]
[1764123769267,2.85,139.65,139.6,6.4498]
[1764123769865,2.85,139.65,139.59,3.546986]
[1764123770065,0.05380789,139.63,139.59,100.3406]
[1764123770263,0.05380789,139.63,139.62,3.546986]
[1764123770468,4.99932606,139.7,139.62,103.864086]
[1764123770762,2.85,139.69,139.63,6.4484]
[1764123770968,2.85,139.69,139.63,3.546986]
[1764123771175,2.85,139.69,139.62,124.8388]
[1764123771473,0.04761978,139.67,139.64,0.04900488]
[1764123771674,2.89761978,139.67,139.64,0.04900488]
[1764123772174,0.04761978,139.67,139.64,0.04900488]
[1764123772372,0.04761978,139.67,139.64,6.49690488]
[1764123772769,0.04761978,139.67,139.64,0.04900488]
[1764123773279,0.04761978,139.67,139.65,6.4473]
[1764123776784,7.84932606,139.73,139.66,100.2903]
[1764123777075,2.85,139.73,139.67,3.546986]
[1764123777975,2.89978577,139.71,139.69,0.0495604]
[1764123779081,0.04978577,139.71,139.69,0.0495604]
[1764123779270,2.89978577,139.71,139.69,0.0495604]
[1764123785977,0.04978577,139.71,139.69,6.4951604]
[1764123786982,3.04,139.76,139.73,6.4439]
[1764123787378,3.04,139.76,139.71,103.798286]
[1764123787573,3.04,139.78,139.72,100.2443]
[1764123787778,3.04,139.78,139.73,100.2399]
[1764123787979,0.05139135,139.77,139.74,0.04605066]
[1764123788281,0.05139135,139.77,139.75,6.4429]
[1764123788684,3.09139135,139.77,139.75,6.4429]
[1764123790990,3.09139135,139.77,139.74,0.04605066]
[1764123792184,0.05139135,139.77,139.74,0.04605066]
[1764123792584,0.05139135,139.77,139.75,8.7129715]
[1764123792787,4.99932606,139.82,139.76,100.217]
[1764123793097,3.04,139.83,139.79,2.2700715]
[1764123793392,3.04,139.83,139.79,8.7110715]
[1764123793894,0.04761503,139.82,139.8,0.05472271]
[1764123794090,0.04761503,139.82,139.8,6.49532271]
[1764123794393,3.08761503,139.82,139.8,0.05472271]
[1764123794593,0.04761503,139.82,139.8,0.05472271]
[1764123794984,3.08761503,139.82,139.8,0.05472271]
[1764123795994,0.04761503,139.82,139.8,0.05472271]
[1764123797088,0.04761503,139.82,139.8,6.49532271]
[1764123797294,0.04761503,139.82,139.8,8.76539421]
[1764123797886,2.95761503,139.82,139.8,2.32479421]
[1764123798397,2.95761503,139.82,139.8,0.05472271]
[1764123804289,2.95761503,139.82,139.74,2.2700715]
[1764123804290,2.91,139.81,139.74,2.2700715]
[1764123805398,2.91,139.78,139.76,0.05368875]
[1764123805899,2.95707088,139.79,139.76,6.49608875]
[1764123811690,2.95707088,139.79,139.77,6.442]
[1764123811892,0.04707088,139.79,139.77,6.442]
[1764123812094,0.04707088,139.79,139.78,2.2700715]
[1764123812689,0.04707088,139.79,139.77,6.442]
[1764123812890,2.95707088,139.79,139.77,6.442]
[1764123815801,0.04707088,139.79,139.77,6.442]
[1764123818008,0.04707088,139.79,139.77,8.7120715]
[1764123819801,2.95707088,139.79,139.77,6.442]
[1764123825811,2.91,139.77,139.73,2.2700715]
[1764123826816,2.91,139.77,139.74,0.05359245]